Workbook

Sheet Sheet1
A1: قطعه شماره 2 | G1: روی دکمه Enable Editing کلیک نمائید!
A2: نام قطعه | D2: Motor Plate
A3: عرض | D3: 190 | E3: =IF(D3>0,1,0) -> 1 | G3: درصورتیکه پنجره خطای 1004 داده شد روی END بزنید و یکبار دیگر فایل را باز نمائید
A4: عمق | D4: 420 | E4: 1
A5: ضخامت پلیت | D5: 20 | E5: 1
A6: قطر سوراخ | D6: 24 | E6: =IF(D6>0,1,0) -> 1
A7: تعداد سوراخ | D7: 6 | E7: 1
A8: فاصله سوراخ عرضی | D8: 100 | E8: =IF(D8>0,1,0) -> 1
A9: فاصله سوراخ عمقی | D9: 200 | E9: =IF(D9>0,1,0) -> 1
A10: تعداد ساخت | D10: 2 | E10: =IF(D10>0,1,0) -> 1
A11: شماره قطعه | D11: 1402211-1501 | E11: =SUM(E3:E10) -> 8 | F11: =IF(E11=8,1,0) -> 1
A12: نام پروژه | D12: Mr. Soltanpour
A13: شرکت | D13: F
A14: آدرس | D14: Tehran
A20: ;
A21: ;
A22: Hi

Sheet Sheet2
A1: =Sheet1!A20 -> ; | B1: No.2 | F1: new | G1: ;
A2: =Sheet1!A21 -> ; | B2: =Sheet1!D2 -> Motor Plate | D2: =depth+B12+250 -> 690 | G2: ;
A3: erase | B3: =Sheet1!D3 -> 190 | C3: w | D3: =width+270 -> 460 | H3: =(D7-1)*B11+60*D7+B6 -> -76
A4: all | B4: =Sheet1!D4 -> 420 | C4: D | D4: =MAX(D2,D3) -> 690 | E4: 10 | F4: =D4/297 -> 2.323232323 | G4: =MAX(F4,F5) -> 2.323232323 | H4: =IF(G5=F5,ROUND(F5*297,0),0) -> 0 | I4: =IF(H4>0,H4,D4) -> 690 | J4: =MAX(width,depth) -> 420 | K4: =(I4-J4)/2 -> 135
C5: r | D5: =MIN(D2,D3) -> 460 | E5: 7 | F5: =D5/210 -> 2.19047619 | G5: =MAX(F5,F4) -> 2.323232323 | H5: =IF(G4=F4,ROUND(F4*210,0),0) -> 488 | I5: =IF(H5>0,H5,D5) -> 488 | J5: =IF(depth>width,width,0) -> 190 | K5: =60+B12+J5+0.1*I5 -> 318.8
A6: ; | B6: =Sheet1!D6 -> 24 | C6: R | E6: =width+depth-E3 -> 610 | G6: =hole/2 -> 12
A7: ; | B7: =Sheet1!D7 -> 6 | C7: No | D7: FALSE | E7: 4 | F7: 6 | G7: =E8+F8 -> 6
A8: ; | E8: =IF(nooh=E7,nooh,0) -> 0 | F8: =IF(nooh=F7,nooh,0) -> 6 | G8: =MATCH(G7,E7:F7,0) -> 2
A9: ; | E9: =(width-B11)/2 -> 45 | F9: =(width-B11)/2 -> 45 | G9: =CHOOSE(G8,E9,F9) -> 45 | H9: =G9+B11 -> 145 | I9: =H9+hole/2 -> 157
A10: ; | E10: =(depth-B13)/2 -> 110 | F10: =(depth-B13)/2 -> 110 | I10: =CHOOSE(G8,E10,F10) -> 110
A11: ="-purge" -> -purge | B11: =Sheet1!D8 -> 100 | C11: disW | E11: =E9&","&E10 -> 45,110 | F11: =F9&","&F10 -> 45,110 | G11: =CHOOSE(G8,E11,F11) -> 45,110
A12: B | B12: =Sheet1!D5 -> 20 | C12: TH | E12: =E9+B11&","&E10 -> 145,110 | F12: =F9+B11&","&F10 -> 145,110 | G12: =CHOOSE(G8,2,3) -> 3 | H12: row
B13: =Sheet1!D9 -> 200 | E13: =E9&","&E10+B13 -> 45,310 | G13: =CHOOSE(G8,B13,B13/2) -> 100 | H13: rowdist
A14: N | B14: =Sheet1!D10 -> 2 | C14: Nomanuf | E14: =E9+B11&","&E10+B13 -> 145,310
A15: INSUNITS
A16: 4 | E16: top lines
A17: dimtih | D17: =INT(I5*4/210) -> 9 | E17: =I5-2*D17 -> 470 | F17: =INT(I5*6/210) -> 13 | G17: =I5-2*F17 -> 462
A18: off | E18: =I5-4*D17 -> 452 | G18: =I5-5.5*F17 -> 416.5
A19: dimclrt
A20: 7
A21: dimasz
A22: =ROUND(I4*3/297,0) -> 7
A23: dimtxt
A24: =A22 -> 7
A25: dimclrd
A26: 1
A27: dimclre
A28: 1
A29: dimfxlon
A30: on
A31: dimfxl
A32: =A24 -> 7
A33: dimexe
A34: =A22/2 -> 3.5
A35: dimgap
A36: =0.1*A24 -> 0.7
A37: dimdec
A38: 0
A39: dimscale
A40: 1
A41: angdir
A42: 0
A43: osmode
A44: 0
A45: ="-style" -> -style
A46: arial
A47: ARIAL
A48: 0
A49: 1
A50: 0
A51: No
A52: No
A53: erase
A54: all
A56: rectang
A57: 0,0
A58: =I4&","&I5 -> 690,488
A59: rectang
A60: ="0,"&INT(0.91*I5) -> 0,444
A61: =I4&","&I5 -> 690,488
A62: rectang
A63: =INT(I4/3)&","&INT(0.91*I5) -> 230,444
A64: =INT(2*I4/3)&","&I5 -> 460,488
A65: ="-text" -> -text
A66: =INT(1.2*I4/3)&","&G17 -> 276,462
A67: =INT(I5*6/210) -> 13
A68: 0
A69: =Name -> Motor Plate
A70: ="-TEXT" -> -TEXT
A71: =INT(1.15*I4/3)&","&G18 -> 264,416.5
A72: =INT(I5*6/210) -> 13
A73: 0
A74: DIMENSIONS mm
A75: ="-text" -> -text
A76: =INT(0.1*I4/3)&","&E17 -> 23,470
A77: =INT(I5*4/210) -> 9
A78: 0
A79: Installation company
A80: ="-text" -> -text
A81: =INT(0.3*I4/3)&","&E18 -> 69,452
A82: =INT(I5*4/210) -> 9
A83: 0
A84: =company -> F
A85: ="-text" -> -text
A86: =INT(2.12*I4/3)&","&E17 -> 487,470
A87: =INT(I5*4/210) -> 9
A88: 0
A89: ="Project: "&prjname -> Project: Mr. Soltanpour
A90: ="-text" -> -text
A91: =INT(2.3*I4/3)&","&E18 -> 529,452
A92: =INT(I5*4/210) -> 9
A93: 0
A94: ="Location: "&prjloc -> Location: Tehran
A95: ="-text" -> -text
A96: =INT(2.1*I4/3)&","&INT(0.1*I5) -> 483,48
A97: =INT(I5*4.5/210) -> 10
A98: 0
A99: ="Material: Steel plate "&thick&" mm" -> Material: Steel plate 20 mm
A100: ="-text" -> -text
A101: =INT(2.1*I4/3)&","&INT(0.1*I5)-20 -> 483,28
A102: =INT(I5*4.5/210) -> 10
A103: 0
A104: ="Qantity: "&Sheet1!D10&" pcs" -> Qantity: 2 pcs
A105: zoom
A106: all
A107: offset
A108: =INT(I5*4/210) -> 9
A109: 0,0
A110: ="-90,0" -> -90,0
A112: cecolor
A113: 200
A114: ="-text" -> -text
A115: ="-2,5" -> -2,5
A116: =INT(I5*2/210) -> 4
A117: 90
A118: visit miniLiftdesigner : https://bardiarad.ir
A119: ="-block" -> -block
A120: lands
A121: 0,0
A122: all
A124: cecolor
A125: 7
A126: rectang
A127: 0,0
A128: =width&","&depth -> 190,420
A129: circle
A130: =G11 -> 45,110
A131: =hole/2 -> 12
A132: ="-array" -> -array
A133: l
A135: R
A136: =G12 -> 3
A137: 2
A138: =IF(A136=1,B138,C138) -> 100 | B138: ; | C138: =G13 -> 100
A139: =B11 -> 100
A140: dimlinear
A141: 0,0
A142: ="0,"&I10 -> 0,110
A143: ="@15<180" -> @15<180
A144: =IF(nooh=6,C144,B144) -> dimlinear | B144: ; | C144: dimlinear
A145: 0,110 | B145: ; | C145: ="0,"&I10 -> 0,110
A146: @100<90 | B146: ; | C146: ="@"&B13/2&"<90" -> @100<90
A147: @15<180 | B147: ; | C147: ="@15<180" -> @15<180
A148: dimlinear | B148: dimlinear | C148: dimlinear
A149: 0,210 | B149: ="0,"&I10 -> 0,110 | C149: ="0,"&I10+B13/2 -> 0,210
A150: 0,310 | B150: ="0,"&I10+B13 -> 0,310 | C150: ="0,"&I10+B13 -> 0,310
A151: @15<180 | B151: ="@15<180" -> @15<180 | C151: ="@15<180" -> @15<180
A152: dimlinear
A153: 0,0
A154: =G9&",0" -> 45,0
A155: ="@15<-90" -> @15<-90
A156: dimlinear
A157: 0,0
A158: ="0,"&depth -> 0,420
A159: ="@30<180" -> @30<180
A160: dimlinear
A161: 0,0
A162: =width&",0" -> 190,0
A163: ="@30<270" -> @30<270
A164: dimlinear
A165: =G11 -> 45,110
A166: ="@"&B11&"<0" -> @100<0
A167: 0
A168: zoom
A169: extents
A170: Redraw
A171: ;
A172: dimdiameter
A173: =I9&","&I10 -> 157,110
A174: =I9&","&I10+15 -> 157,125
A175: rectang
A176: =width+30&",0" -> 220,0
A177: ="@"&B12&","&depth -> @20,420
A178: dimlinear
A179: =width+30&",0" -> 220,0
A180: =width+30+B12&",0" -> 240,0
A181: ="@15<-90" -> @15<-90
A182: =IF(width>=depth,B182,C182) -> rotate | B182: ; | C182: rotate
A183: =IF(width>=depth,B183,C183) -> all | B183: ; | C183: all
A184: =IF(width>=depth,B184,CONCATENATE(C184)) ->  | B184: ;
A185: =IF(width>=depth,B185,C185) -> 0,0 | B185: ; | C185: 0,0
A186: =IF(width>=depth,B186,C186) -> -90 | B186: ; | C186: ="-90" -> -90
A187: ="-insert" -> -insert
A188: lands
A189: =-K4&","&-K5 -> -135,-318.8
A190: 1
A191: 1
A192: 0
A193: ;
A194: ;
A195: ;
A196: ;
A197: ;
A198: ;
A199: ;
A200: ;
A201: ;
A202: ;
A203: ;
A204: ;
... 99 more rows
